bitfinex-derivatives/quotes_SOLF0:USTF0_20241229
["timestamp","ask_amount","ask_price","bid_price","bid_amount"]
[1735507195427,11.40290144,192.21,192.14,8.34620144]
[1735507195629,11.40290144,192.21,192.15,2.96]
[1735507197432,2.6071,192.18,192.15,5.5673]
[1735507197834,9.93910144,192.21,192.15,2.96]
[1735507198028,9.93910144,192.21,192.16,2.6072]
[1735507198229,8.34620144,192.23,192.16,8.34620144]
[1735507198431,2.6067,192.21,192.17,2.6071]
[1735507199135,2.6067,192.21,192.18,8.34620144]
[1735507202932,2.607,192.19,192.15,5.5673]
[1735507203138,8.34620144,192.21,192.15,2.96]
[1735507203538,2.6073,192.16,192.15,2.96]
[1735507203738,3.1775,192.26,192.15,2.96]
[1735507203935,3.1775,192.26,192.17,8.34620144]
[1735507204136,2.6067,192.21,192.17,10.95330144]
[1735507204335,8.34620144,192.24,192.17,8.34620144]
[1735507204742,2.6065,192.22,192.17,10.95330144]
[1735507204933,8.34620144,192.24,192.17,10.95330144]
[1735507205338,2.6067,192.21,192.17,10.95330144]
[1735507206342,8.34620144,192.24,192.17,8.34620144]
[1735507206535,8.34620144,192.22,192.15,11.30620144]
[1735507207056,2.607,192.18,192.15,11.30620144]
[1735507207540,2.607,192.18,192.15,13.91360144]
[1735507209441,8.34620144,192.21,192.15,13.91360144]
[1735507209639,2.6069,192.19,192.15,13.91360144]
[1735507209838,8.34620144,192.23,192.17,8.34620144]
[1735507210740,2.6065,192.22,192.17,8.34620144]
[1735507210945,8.34620144,192.25,192.19,8.34620144]
[1735507211145,3.1775,192.26,192.2,2.96]
[1735507211344,2.6063,192.24,192.2,5.5667]
[1735507211547,2.6063,192.24,192.21,8.34620144]
[1735507212049,2.6061,192.25,192.21,10.95280144]
[1735507214240,2.6059,192.27,192.24,2.6062]
[1735507215242,2.6059,192.27,192.23,10.95250144]
[1735507216249,2.6062,192.24,192.2,2.96]
[1735507216448,2.6062,192.24,192.21,8.34620144]
[1735507220354,2.6061,192.25,192.21,10.95280144]
[1735507222055,2.6062,192.24,192.22,2.96]
[1735507222855,1.5909,192.31,192.22,2.96]
[1735507223053,2.606,192.26,192.22,5.5664]
[1735507223253,2.606,192.26,192.22,2.96]
[1735507224560,2.606,192.26,192.23,2.6063]
[1735507225759,2.6061,192.25,192.22,2.6064]
[1735507225956,8.34620144,192.24,192.19,2.96]
[1735507227357,2.6064,192.23,192.19,13.91300144]
[1735507230250,2.6068,192.2,192.1,46.77106012]
[1735507230455,8.34620144,192.22,192.15,8.34620144]
[1735507230757,2.6072,192.17,192.16,2.96]
[1735507230960,2.6072,192.17,192.15,2.96]
[1735507231152,2.6072,192.17,192.13,13.91380144]
[1735507231556,2.6072,192.17,192.13,5.5676]
[1735507232357,2.6074,192.16,192.12,8.34620144]
[1735507232660,8.34620144,192.18,192.12,2.96]
[1735507232860,8.34620144,192.18,192.11,5.5679]
[1735507233153,8.34620144,192.18,192.12,8.34620144]
[1735507233361,2.6074,192.16,192.12,8.34620144]
[1735507234064,1.4844,192.21,192.12,8.34620144]
[1735507234259,2.6072,192.18,192.14,2.6075]
[1735507238160,2.6072,192.18,192.14,10.95370144]
[1735507238463,1.5932,192.23,192.16,8.34620144]
[1735507238663,1.5932,192.23,192.18,8.34620144]
[1735507238865,2.6064,192.23,192.19,2.6068]
[1735507240582,2.6064,192.23,192.2,2.6067]
[1735507240763,2.6064,192.23,192.19,8.34620144]
[1735507242161,2.6064,192.23,192.19,10.95310144]
[1735507242468,8.34620144,192.23,192.13,1.4884]
[1735507242667,8.34620144,192.23,192.15,8.34620144]
[1735507242863,2.6071,192.18,192.15,8.34620144]
[1735507243064,8.34620144,192.21,192.15,8.34620144]
[1735507243265,8.34620144,192.19,192.14,2.96]
[1735507243463,8.34620144,192.17,192.1,7.13979517]
[1735507243666,8.34620144,192.17,192.11,20.06974702]
[1735507243864,8.34620144,192.17,192.11,11.30620144]
[1735507244662,2.6076,192.15,192.11,13.91420144]
[1735507247768,8.34620144,192.17,192.11,2.96]
[1735507247969,2.6077,192.13,192.11,2.96]
[1735507248767,8.34620144,192.17,192.11,2.96]
[1735507248964,2.6076,192.14,192.11,2.96]
[1735507249173,8.34620144,192.17,192.11,2.96]
[1735507249970,2.6075,192.15,192.11,5.5679]
[1735507254174,2.6075,192.15,192.12,8.34620144]
[1735507254370,2.6075,192.15,192.11,5.5679]
[1735507254566,2.6076,192.14,192.11,2.96]
[1735507254767,8.34620144,192.17,192.11,2.96]
[1735507256466,2.6075,192.15,192.11,5.5678]
[1735507257275,2.6075,192.15,192.1,8.34620144]
[1735507257575,2.6075,192.15,192.11,2.96]
[1735507258073,2.6075,192.15,192.12,8.34620144]
[1735507259376,2.6073,192.16,192.12,8.34620144]
[1735507259974,2.6076,192.14,192.12,8.34620144]
[1735507260372,8.34620144,192.18,192.12,8.34620144]
[1735507261074,2.6076,192.14,192.12,8.34620144]
[1735507262077,8.34620144,192.18,192.12,8.34620144]
[1735507262278,2.6075,192.15,192.12,10.95400144]
[1735507262477,8.34620144,192.18,192.12,8.34620144]
[1735507264883,2.6077,192.13,192.11,2.96]
[1735507265077,8.34620144,192.18,192.11,2.96]
[1735507265582,2.6073,192.16,192.11,2.96]
[1735507265782,8.34620144,192.18,192.11,2.96]
[1735507265984,8.34620144,192.18,192.12,8.34620144]
[1735507266383,2.6074,192.16,192.12,8.34620144]
[1735507267184,8.34620144,192.18,192.12,10.95390144]
[1735507267485,2.6077,192.13,192.11,11.30620144]
[1735507267682,8.34620144,192.18,192.11,11.30620144]
[1735507268179,2.6075,192.15,192.12,2.6078]
[1735507268376,8.34620144,192.18,192.11,11.30620144]
[1735507269082,2.6075,192.15,192.11,11.30620144]
[1735507270483,2.6075,192.15,192.12,2.6078]
[1735507271180,8.34620144,192.16,192.09,2.96]
[1735507271585,1.5421,192.15,192.09,2.96]
[1735507272277,8.34620144,192.14,192.06,8.34620144]
[1735507272479,9.81740144,192.14,192.06,11.30620144]
[1735507273576,2.6084,192.09,192.04,1.8988962]
[1735507273782,8.34620144,192.1,192.04,13.20509764]
[1735507274587,8.34620144,192.1,192.04,11.30620144]
[1735507275286,2.6087,192.06,192.04,11.30620144]
[1735507277283,2.6088,192.05,192.01,2.6092]
[1735507277490,8.34620144,192.08,192.01,8.34620144]
[1735507277679,8.34620144,192.06,191.96,10.15979517]
[1735507277883,8.34620144,192.06,191.99,11.30620144]
[1735507278085,2.6093,192.02,191.99,11.30620144]
[1735507279789,8.34620144,192.04,191.92,1.90007545]
[1735507280090,2.6095,192.01,191.97,8.34620144]
[1735507281784,2.6095,192.01,191.97,10.95610144]
[1735507283393,8.34620144,192.02,191.95,8.34620144]
[1735507283688,2.6095,192.0,191.96,2.61]
[1735507286394,2.6099,191.97,191.94,2.96]
[1735507287387,2.6097,191.99,191.95,10.95620144]
[1735507287591,8.34620144,192.02,191.95,8.34620144]
[1735507288391,2.6095,192.0,191.96,2.61]
[1735507289698,8.34620144,191.98,191.92,4.51057545]
[1735507289993,8.34620144,191.98,191.92,1.90007545]
[1735507290189,2.6094,192.01,191.97,2.6098]
[1735507291107,2.96,192.03,191.95,8.34620144]
[1735507291108,8.34620144,192.0,191.95,8.34620144]
[1735507291294,8.34620144,192.0,191.93,8.34620144]
[1735507291696,2.6098,191.98,191.94,2.6102]
[1735507291997,8.34620144,191.98,191.92,1.90007545]
[1735507292199,2.6102,191.95,191.92,7.47047545]
[1735507292399,8.34620144,191.98,191.92,7.47047545]
[1735507292789,2.61,191.96,191.93,2.6104]
[1735507293301,2.6098,191.98,191.94,2.6102]
[1735507294994,2.6096,191.99,191.93,11.30620144]
[1735507295201,8.34620144,192.02,191.95,8.34620144]
[1735507295904,4.512,192.05,191.95,8.34620144]
[1735507296107,8.34620144,192.02,191.95,8.34620144]
[1735507296399,2.6095,192.0,191.97,2.6098]
[1735507298905,2.6099,191.97,191.94,2.6103]
[1735507299496,8.34620144,192.0,191.93,11.30620144]
[1735507299696,2.6101,191.96,191.93,11.30620144]
[1735507300201,2.6101,191.96,191.93,13.91660144]
[1735507301303,2.6101,191.96,191.93,11.30620144]
[1735507301497,2.6101,191.96,191.93,2.96]
[1735507302300,2.6102,191.95,191.92,4.51057545]
[1735507302511,8.34620144,191.96,191.9,2.6107]
[1735507302906,2.6106,191.92,191.88,2.96]
[1735507303109,2.6106,191.92,191.88,5.571]
[1735507305205,2.6106,191.92,191.88,2.6111]
[1735507305905,2.6111,191.89,191.84,2.6115]
[1735507306103,8.34620144,191.9,191.84,2.6115]
[1735507306909,2.6112,191.88,191.84,2.6115]
[1735507307210,8.34620144,191.9,191.85,2.6115]
[1735507307909,2.611,191.89,191.85,2.6115]
[1735507312409,2.6106,191.92,191.88,2.6111]
[1735507314415,2.6107,191.91,191.87,2.6112]
[1735507315214,2.6106,191.92,191.88,2.611]
[1735507315620,9.96670144,191.93,191.88,2.611]
[1735507316417,2.6107,191.91,191.88,2.611]
[1735507317118,1.5686,191.97,191.89,8.34620144]
[1735507317337,8.34620144,191.96,191.89,8.34620144]
[1735507317517,8.34620144,191.96,191.92,2.6105]
[1735507317921,4.1786,191.97,191.91,8.34620144]
[1735507318111,2.61,191.96,191.93,2.6104]
[1735507320419,2.61,191.96,191.92,2.6106]
[1735507320928,10.95620144,191.96,191.92,2.6106]
[1735507321121,8.34620144,191.96,191.92,2.6106]
[1735507321418,2.6102,191.95,191.92,2.6106]
[1735507321621,1.5686,191.97,191.94,2.6102]
[1735507321819,4.1785,191.97,191.94,2.6102]
[1735507322624,2.6101,191.96,191.93,2.6104]
[1735507325520,8.34620144,191.96,191.9,2.6108]
[1735507325725,8.34620144,191.94,191.9,2.6108]
[1735507325921,8.34620144,191.94,191.88,2.96]
[1735507326120,1.5686,191.97,191.9,2.6108]
[1735507326121,8.34620144,191.96,191.9,2.6108]
[1735507327126,2.6103,191.94,191.9,2.6108]
[1735507328228,10.95630144,191.96,191.92,2.6105]
[1735507328923,2.6103,191.95,191.89,8.34620144]
[1735507329426,2.6103,191.95,191.91,2.6106]
[1735507330422,8.34620144,191.94,191.85,1.5121]
[1735507330630,8.34620144,191.94,191.86,20.09156551]
[1735507330826,8.34620144,191.94,191.86,11.30620144]
[1735507331129,2.6108,191.91,191.87,2.6111]
[1735507332029,8.34620144,191.94,191.87,2.6111]
[1735507332229,2.6108,191.9,191.87,2.6111]
[1735507332422,8.34620144,191.94,191.85,2.6114]
[1735507332630,2.6111,191.89,191.85,5.5714]
[1735507334332,2.6108,191.91,191.87,2.6112]
[1735507334530,8.34620144,191.92,191.85,11.30620144]
[1735507334830,8.34620144,191.92,191.86,2.96]
[1735507336231,2.6107,191.91,191.87,2.6111]
[1735507336922,2.6111,191.88,191.86,2.96]
[1735507337325,2.6111,191.88,191.84,2.6115]
[1735507337726,2.6112,191.87,191.84,2.6115]
[1735507340029,2.6114,191.86,191.83,2.6117]
[1735507340727,8.34620144,191.88,191.82,8.34620144]
[1735507340925,8.34620144,191.86,191.81,7.4731785]
[1735507342524,8.34620144,191.86,191.81,4.8611785]
[1735507343025,2.6119,191.83,191.81,4.8611785]
[1735507343836,2.6119,191.83,191.81,1.9011785]
[1735507344334,2.6122,191.81,191.77,5.5725]
[1735507344728,8.34620144,191.82,191.77,5.5725]
[1735507345024,2.6122,191.8,191.77,5.5725]
[1735507345927,2.6122,191.8,191.77,2.6125]
[1735507348737,2.6122,191.8,191.75,2.96]
[1735507348937,2.6122,191.8,191.76,2.6127]
[1735507350541,2.6126,191.78,191.74,2.6129]
[1735507350735,2.6126,191.78,191.74,5.5729]
[1735507351037,2.6126,191.78,191.74,2.6129]
[1735507353238,8.34620144,191.78,191.64,7.13979517]
[1735507353440,3.0792,191.8,191.71,8.34620144]
[1735507353636,8.34620144,191.79,191.72,2.96]
[1735507353833,10.95850144,191.79,191.73,8.34620144]
[1735507354352,1.5026,191.8,191.73,8.34620144]
[1735507354728,1.5026,191.8,191.75,8.34620144]
[1735507354938,4.1341,191.81,191.75,8.34620144]
[1735507355739,4.1341,191.81,191.77,2.6125]
[1735507356142,1.5026,191.85,191.77,11.30620144]
[1735507356354,1.6145,191.9,191.81,8.34620144]
[1735507356544,8.34620144,191.89,191.82,2.96]
[1735507356937,10.95720144,191.89,191.84,2.6116]
[1735507357138,8.34620144,191.89,191.82,2.96]
[1735507358443,2.6113,191.87,191.83,2.6118]
[1735507359147,8.34620144,191.89,191.82,2.96]
[1735507359346,2.6111,191.88,191.84,2.6116]
[1735507360244,2.6113,191.87,191.83,2.6118]
[1735507360748,8.34620144,191.89,191.82,2.96]
[1735507361050,2.6114,191.86,191.82,5.5719]
[1735507363154,8.34620144,191.87,191.82,2.96]
[1735507363355,8.34620144,191.87,191.79,8.34620144]
[1735507363555,8.34620144,191.87,191.8,2.96]
[1735507364452,10.95770144,191.85,191.81,2.612]
[1735507364650,8.34620144,191.87,191.8,11.30620144]
[1735507364955,10.95750144,191.87,191.82,2.6119]
[1735507365564,2.6114,191.86,191.82,2.6119]
[1735507373378,8.34620144,191.87,191.82,2.6119]
[1735507373575,2.6116,191.85,191.82,2.6119]
[1735507374670,2.6117,191.84,191.8,5.5721]
[1735507374872,8.34620144,191.87,191.8,5.5721]
[1735507376075,8.34620144,191.83,191.76,8.34620144]
[1735507376263,8.34620144,191.83,191.76,11.30620144]
[1735507376772,2.6123,191.8,191.76,13.91890144]
[1735507377975,2.6123,191.8,191.76,11.30620144]
[1735507378167,2.6123,191.8,191.77,2.6126]
[1735507379874,2.612,191.82,191.79,2.6123]
[1735507380972,2.6121,191.81,191.77,2.6125]
[1735507381274,8.34620144,191.83,191.77,2.6125]
[1735507381472,2.6121,191.81,191.77,2.6125]
[1735507382880,8.34620144,191.83,191.76,2.96]
[1735507383078,8.34620144,191.83,191.78,2.6124]
[1735507384675,8.34620144,191.83,191.77,2.6126]
[1735507384974,2.6122,191.81,191.77,2.6126]
[1735507386175,2.6122,191.8,191.77,2.6126]
[1735507386375,8.34620144,191.81,191.75,2.6129]
[1735507386570,2.6127,191.77,191.75,2.96]
[1735507388679,2.6127,191.77,191.74,2.613]
[1735507389579,2.6128,191.76,191.72,12.86141058]
[1735507389783,2.6128,191.76,191.73,2.96]
[1735507389975,8.34620144,191.79,191.72,12.86141058]
[1735507390175,8.34620144,191.79,191.72,15.82141058]
[1735507390176,2.6129,191.75,191.72,15.82141058]
[1735507390672,2.6129,191.75,191.72,7.47520914]
[1735507390876,8.34620144,191.75,191.69,2.96]
[1735507391585,2.6133,191.72,191.69,2.96]
[1735507391879,8.34620144,191.77,191.69,11.30620144]
[1735507392081,2.6128,191.76,191.72,2.6133]
[1735507393187,2.6129,191.75,191.72,2.6133]
[1735507393378,2.6129,191.75,191.71,2.6134]
[1735507397579,8.34620144,191.75,191.69,2.96]
[1735507398179,8.34620144,191.75,191.68,8.34620144]
[1735507398381,8.34620144,191.75,191.69,2.96]
[1735507398581,3.1134,191.81,191.7,8.34620144]
[1735507398782,8.34620144,191.79,191.72,8.34620144]
[1735507399083,2.6126,191.78,191.74,2.6129]
[1735507399478,8.34620144,191.77,191.71,2.96]
[1735507399682,2.613,191.75,191.72,2.6133]
[1735507399885,8.34620144,191.77,191.71,2.96]
[1735507400186,3.1134,191.81,191.71,11.30620144]
[1735507400381,8.34620144,191.79,191.71,11.30620144]
[1735507400784,2.6126,191.78,191.74,2.613]
[1735507400985,8.34620144,191.79,191.71,11.30620144]
[1735507401184,8.34620144,191.77,191.71,2.96]
[1735507401485,2.6129,191.75,191.72,2.6133]
[1735507401681,8.34620144,191.75,191.71,2.96]
[1735507401987,2.6132,191.74,191.71,2.96]
[1735507403183,2.6132,191.73,191.71,2.96]
[1735507404882,2.6132,191.73,191.7,2.6136]
[1735507405888,2.6132,191.73,191.69,5.5737]
[1735507406389,8.34620144,191.75,191.69,5.5737]
[1735507406390,2.6133,191.72,191.69,5.5737]
[1735507411994,2.6133,191.72,191.69,2.6137]
[1735507420299,10.95960144,191.71,191.68,2.6138]
[1735507423305,8.34620144,191.71,191.65,2.96]
[1735507423599,2.6136,191.7,191.67,2.6139]
[1735507424395,8.34620144,191.71,191.62,55.8019]
[1735507424596,10.96000144,191.69,191.65,2.6142]
[1735507426504,10.96000144,191.69,191.66,2.6141]
[1735507430305,1.519,191.73,191.66,8.34620144]
[1735507430503,8.34620144,191.73,191.67,8.82454744]
[1735507430706,8.34620144,191.73,191.68,11.78454744]
[1735507430901,8.34620144,191.73,191.68,2.96]
[1735507431205,8.34620144,191.73,191.69,8.82592833]
[1735507431406,8.34620144,191.73,191.68,11.30620144]
[1735507431606,8.34620144,191.73,191.69,8.82502464]
[1735507431808,8.34620144,191.73,191.71,2.6133]
[1735507436414,2.6136,191.71,191.68,2.96]
[1735507436711,8.34620144,191.69,191.64,10.09979517]
[1735507436914,8.34620144,191.69,191.65,8.83693915]
[1735507437210,8.34620144,191.69,191.66,8.83693915]
[1735507437413,8.34620144,191.67,191.64,28.55918069]
[1735507437915,8.34620144,191.67,191.64,2.6144]
[1735507438306,4.7614,191.74,191.65,8.83851412]
[1735507438307,2.6138,191.69,191.65,8.83851412]
[1735507438510,2.6138,191.69,191.65,2.6142]
[1735507438710,8.34620144,191.67,191.65,2.6142]
[1735507442115,8.34620144,191.69,191.66,2.6141]
[1735507442416,8.34620144,191.69,191.63,2.96]
[1735507442616,8.34620144,191.69,191.64,8.82729247]
[1735507442818,8.34620144,191.69,191.63,2.96]
[1735507443117,8.34620144,191.69,191.65,2.6142]
[1735507443309,8.34620144,191.69,191.63,2.96]
[1735507443515,8.34620144,191.69,191.64,8.82641825]
[1735507443719,8.34620144,191.69,191.66,2.614]
[1735507443915,8.34620144,191.69,191.63,2.96]
[1735507444120,8.34620144,191.69,191.64,8.82432123]
[1735507444322,8.34620144,191.69,191.65,8.82432123]
[1735507444623,8.34620144,191.69,191.66,8.82432123]
[1735507444823,8.34620144,191.69,191.67,8.82432123]
[1735507445116,8.34620144,191.69,191.63,2.96]
[1735507445321,8.34620144,191.69,191.64,8.82846739]
[1735507445522,8.34620144,191.69,191.65,8.82846739]
[1735507445724,8.34620144,191.69,191.66,11.44246739]
[1735507445918,8.34620144,191.69,191.66,2.614]
[1735507446221,8.34620144,191.71,191.64,8.34620144]
[1735507446421,8.34620144,191.71,191.65,8.82974131]
[1735507446622,8.34620144,191.71,191.66,8.82974131]
[1735507446823,8.34620144,191.71,191.64,8.34620144]
[1735507447025,8.34620144,191.71,191.65,8.8296874]
[1735507447219,8.34620144,191.71,191.66,8.8296874]
[1735507447420,10.95970144,191.71,191.64,8.34620144]
[1735507447620,10.95970144,191.71,191.65,8.83229296]
[1735507447817,10.95970144,191.71,191.66,8.83229296]
[1735507448020,7.3744,191.74,191.71,2.6134]
[1735507448319,14.11290144,191.74,191.71,2.6134]
[1735507448515,14.11290144,191.74,191.68,2.96]
[1735507448821,14.11290144,191.74,191.7,2.6136]
[1735507449026,11.49990144,191.74,191.68,2.96]
[1735507449329,11.49990144,191.74,191.69,8.8338159]
[1735507449523,11.49990144,191.74,191.7,4.19775839]
[1735507449723,5.7668,191.74,191.68,11.30620144]
[1735507449924,14.11300144,191.74,191.69,8.8334181]
[1735507450125,14.11300144,191.74,191.7,8.8334181]
[1735507450322,14.11300144,191.74,191.69,2.6136]
[1735507450522,14.11300144,191.74,191.7,8.83342919]
[1735507450820,14.11300144,191.74,191.68,11.30620144]
[1735507451020,14.11300144,191.74,191.7,2.6135]
[1735507451220,8.34620144,191.72,191.68,2.96]
[1735507451625,8.34620144,191.7,191.68,2.96]
[1735507451826,10.95990144,191.7,191.68,2.96]
[1735507452325,10.95990144,191.7,191.64,8.34620144]
[1735507452528,10.95990144,191.7,191.66,2.96]
[1735507452728,10.95990144,191.7,191.67,8.83762931]
[1735507452931,8.34620144,191.7,191.66,2.96]
[1735507453125,3.1537,191.74,191.67,8.83308347]
[1735507453323,8.34620144,191.73,191.7,2.6135]
[1735507454429,8.34620144,191.73,191.71,2.6133]
[1735507455623,8.34620144,191.73,191.66,11.30620144]
[1735507455833,10.95960144,191.72,191.67,8.83031524]
[1735507456024,10.95960144,191.72,191.68,8.83031524]
[1735507456220,10.95960144,191.72,191.69,8.83031524]
[1735507456425,10.95960144,191.72,191.66,11.30620144]
[1735507456630,10.95960144,191.72,191.67,8.83169397]
[1735507456829,10.95960144,191.72,191.68,8.83169397]
[1735507457024,10.95960144,191.72,191.69,8.83169397]
[1735507457224,10.95960144,191.72,191.66,11.30620144]
[1735507457434,10.95960144,191.72,191.67,8.83049891]
[1735507457629,8.34620144,191.72,191.69,2.6136]
[1735507458235,10.95950144,191.72,191.69,2.6136]
[1735507459433,8.34620144,191.72,191.68,2.96]
[1735507459636,2.6136,191.7,191.68,2.96]
[1735507460731,8.34620144,191.72,191.69,2.6136]
[1735507460926,9.90470144,191.74,191.68,2.96]
[1735507461133,9.90470144,191.74,191.69,17.17677777]
[1735507461330,9.90470144,191.74,191.71,2.6134]
[1735507461530,9.90470144,191.74,191.68,2.96]
[1735507461732,8.34620144,191.72,191.68,2.96]
[1735507461936,10.95960144,191.72,191.68,5.5738]
[1735507462531,10.95990144,191.7,191.68,2.96]
[1735507462932,10.95990144,191.7,191.65,2.96]
[1735507463139,2.614,191.68,191.66,8.83467212]
[1735507463436,8.34620144,191.68,191.65,2.96]
[1735507464138,8.34620144,191.68,191.65,5.5743]
[1735507464437,2.6139,191.69,191.65,5.5743]
[1735507465041,8.34620144,191.7,191.65,2.96]
[1735507465338,10.95950144,191.72,191.68,2.6137]
[1735507466447,8.34620144,191.7,191.66,2.6141]
[1735507466637,8.34620144,191.7,191.67,4.19797614]
[1735507466834,8.34620144,191.7,191.66,2.6141]
[1735507467440,2.6137,191.69,191.66,2.6141]
[1735507471039,8.34620144,191.72,191.65,11.30620144]
[1735507471343,1.5328,191.73,191.67,8.34620144]
[1735507471548,1.5328,191.73,191.68,8.83309784]
[1735507471740,1.5328,191.73,191.7,2.6135]
[1735507472941,8.34620144,191.72,191.7,2.6135]
[1735507475047,8.34620144,191.72,191.65,11.30620144]
[1735507475250,8.34620144,191.72,191.69,2.6137]
[1735507477048,10.95950144,191.72,191.69,2.6137]
[1735507478452,2.6135,191.71,191.68,2.6138]
[1735507480651,1.5328,191.73,191.65,11.30620144]
[1735507480849,10.95950144,191.72,191.69,2.6137]
[1735507483955,8.34620144,191.72,191.68,2.96]
[1735507484152,2.6136,191.7,191.68,2.96]
[1735507484351,2.6136,191.7,191.69,4.19962861]
[1735507484552,2.6136,191.7,191.68,2.96]
[1735507485857,8.34620144,191.72,191.68,2.96]
[1735507486059,2.6135,191.71,191.69,8.8384725]
[1735507486255,2.6135,191.71,191.68,2.96]
[1735507486456,2.6135,191.71,191.69,8.83830482]
[1735507486752,2.6135,191.71,191.68,5.5738]
[1735507486953,2.6135,191.71,191.69,8.83906792]
[1735507487153,2.6135,191.71,191.68,5.5738]
[1735507487453,2.6135,191.71,191.69,8.83846251]
[1735507487654,2.6135,191.71,191.68,5.5738]
[1735507487854,2.6135,191.71,191.69,8.83945685]
[1735507488055,2.6135,191.71,191.68,5.5738]
[1735507488355,2.6135,191.71,191.69,8.83761203]
[1735507488656,2.6135,191.71,191.68,5.5738]
[1735507488852,2.6135,191.71,191.69,8.83537379]
[1735507489158,2.6133,191.72,191.69,2.6137]
[1735507489360,10.95950144,191.72,191.69,2.6137]
[1735507493057,8.34620144,191.72,191.68,2.96]
[1735507493261,2.6135,191.71,191.69,8.839509]
[1735507493559,2.6135,191.71,191.68,5.5738]
[1735507493762,2.6135,191.71,191.69,8.84023154]
[1735507494061,2.6135,191.71,191.68,5.5738]
[1735507494362,2.6135,191.71,191.69,8.8407001]
[1735507494560,2.6135,191.71,191.68,5.5738]
[1735507494755,2.6135,191.71,191.69,8.84120912]
[1735507494956,2.6135,191.71,191.68,5.5738]
[1735507495159,8.34620144,191.72,191.7,2.6135]
[1735507495359,12.51780144,191.74,191.7,2.6135]
[1735507496959,2.6132,191.73,191.7,2.6135]
[1735507498067,10.95950144,191.72,191.69,2.6137]
[1735507499168,2.6136,191.7,191.67,2.6139]
[1735507499465,2.6136,191.7,191.68,8.8429141]
[1735507499668,2.6136,191.7,191.69,8.8429141]
[1735507499858,2.6136,191.7,191.69,4.20206659]
[1735507500063,2.6136,191.7,191.69,8.84384281]
[1735507500364,8.34620144,191.72,191.69,8.84384281]
[1735507500572,8.34620144,191.72,191.68,2.6138]
[1735507500573,2.6135,191.71,191.68,2.6138]
[1735507500868,2.6135,191.71,191.69,8.84533539]
[1735507501068,2.6135,191.71,191.68,2.6138]
[1735507501267,2.6135,191.71,191.69,8.84378432]
[1735507501467,2.6135,191.71,191.68,2.6138]
[1735507501671,2.6135,191.71,191.69,8.84448247]
[1735507501964,2.6135,191.71,191.68,2.6138]
[1735507502169,2.6135,191.71,191.69,8.84482595]
[1735507502468,2.6135,191.71,191.68,2.6138]
[1735507502671,2.6136,191.7,191.67,2.96]
[1735507502870,2.6136,191.7,191.68,8.84648985]
[1735507503069,2.6136,191.7,191.67,2.96]
[1735507503265,2.6136,191.7,191.68,8.84684483]
[1735507503471,2.6136,191.7,191.67,2.96]
[1735507503769,10.95980144,191.7,191.68,8.84703989]
[1735507504074,10.95980144,191.7,191.67,5.5739]
[1735507504369,10.95980144,191.7,191.68,8.84727482]
[1735507504571,10.95980144,191.7,191.67,5.5739]
[1735507504772,10.95980144,191.7,191.68,8.84752127]
[1735507504967,10.95980144,191.7,191.67,5.5739]
[1735507505167,10.95980144,191.7,191.68,8.84839632]
[1735507505369,10.95980144,191.7,191.67,5.5739]
[1735507505570,10.95980144,191.7,191.68,8.84762178]
[1735507505768,10.95950144,191.72,191.69,2.6137]
[1735507506376,9.90470144,191.74,191.71,2.6134]
[1735507507070,12.51770144,191.74,191.71,2.6134]
[1735507508569,12.51770144,191.74,191.7,2.6135]
[1735507509077,8.34620144,191.72,191.7,2.6135]
[1735507511883,8.34620144,191.72,191.66,8.34620144]
[1735507512083,2.6134,191.71,191.68,2.6137]
[1735507512385,2.6134,191.71,191.69,8.86017551]
[1735507512583,2.6134,191.71,191.7,8.86017551]
[1735507512986,2.6134,191.71,191.68,2.6137]
[1735507513180,10.95950144,191.73,191.7,2.6135]
[1735507514383,10.95950144,191.73,191.71,8.86179378]
[1735507514582,10.95950144,191.73,191.69,2.6137]
[1735507514776,10.95950144,191.73,191.7,8.86102301]
[1735507514982,10.95950144,191.73,191.71,8.86102301]
[1735507515183,10.95950144,191.73,191.69,5.5737]
[1735507515483,10.95950144,191.73,191.7,4.21065808]
[1735507515678,2.6133,191.73,191.71,4.21065808]